[Event "Queen Rapid Challenge 2024"]
[Site "Bucharest"]
[Date "2024.03.10"]
[Round "3.1"]
[White "Bulmaga, Irina"]
[Black "Pirvulescu, Ekaterina"]
[Result "1-0"]
[ECO "C10"]
[WhiteElo "2429"]
[BlackElo "2091"]
[Annotator "TA"]
[PlyCount "61"]
[EventDate "2024.03.09"]
[EventType "rapid"]
[EventCountry "ROU"]
[SourceTitle "playchess.com"]
[Source "ChessBase"]
[SourceQuality "1"]
[TimeControl "900+10"]

{[%evp 22,61,47,51,59,17,18,0,12,0,12,11,45,18,9,16,13,8,5,5,59,35,46,43,43,8,81,61,79,73,81,85,120,122,152,121,229,221,993,963,29991,29992]} 1. e4 {[%emt 0:00:12]} c5 {[%emt 0:00:11]} 2. Nf3 {[%emt 0:00:08]} e6 {[%emt 0:00:06]} 3. c3 {[%emt 0:00:07]} d5 {[%emt 0:00:06]} 4. exd5 {[%emt 0:00:08]} Qxd5 {[%emt 0:00:07]} 5. d4 {[%emt 0:00:07]} Nf6 {[%emt 0:00:09]} 6. Na3 {[%emt 0:00:21]} Nc6 {[%emt 0:00:23]} 7. Be3 {[%emt 0:00:49]} cxd4 {[%emt 0:01:15]} 8. Nb5 {[%emt 0:00:10]} Qd8 {[%emt 0:00:20]} 9. Nbxd4 {[%emt 0:00:12]} Nxd4 {[%emt 0:00:21]} 10. Bxd4 {[%emt 0:00:10]} Be7 {[%emt 0:00:31]} 11. Bd3 {[%emt 0:00:37]} O-O {[%emt 0:00:16]} 12. O-O {[%emt 0:00:10]} b6 {[%emt 0:02:26]} 13. Qe2 {[%emt 0:00:08] aiming for Bxf6.} Bb7 {[%emt 0:00:13]} 14. Ba6 {[%emt 0:00:38]} Bxa6 {[%emt 0:00:41] The position is equal.} 15. Qxa6 {[%emt 0:00:07]} Qd5 {[%emt 0:00:11]} 16. Rad1 {[%emt 0:00:52][%cal Ba1d1,Bd1d7,Bd7d2][%mdl 32]} Qf5 {[%emt 0:01:03]} 17. Bxf6 {[%emt 0:01:30]} Bxf6 {[%emt 0:00:09]} 18. Rd7 {[%emt 0:00:16]} Qc2 {[%emt 0:02:07]} 19. Rd2 {[%emt 0:00:13]} Qf5 {[%emt 0:00:25]} 20. h3 {[%emt 0:00:39]} e5 {[%emt 0:00:24]} ({Better is} 20... Rfb8 $11) 21. Rfd1 {[%emt 0:00:25]} e4 {[%emt 0:00:17]} 22. Nd4 {[%emt 0:00:06][%cal Bf3d4,Bd4c2,Bc2e3,Be3d5,Bd5e7][%mdl 32]} Qf4 {[%emt 0:00:52]} 23. Qe2 {[%emt 0:01:23]} Rfe8 {[%emt 0:00:41]} (23... Rae8 $11) 24. Nc2 $16 {[%emt 0:00:59]} Be5 {[%emt 0:01:19]} 25. g3 {[%emt 0:00:07]} Qf5 {[%emt 0:01:07]} 26. Kg2 {[%emt 0:00:23]} Bf6 {[%emt 0:00:12]} 27. Ne3 {[%emt 0:00:17]} Qa5 {[%emt 0:00:41]} 28. Nd5 {[%emt 0:00:16] Threatens to win with Nxf6+.} Be5 {[%emt 0:00:51]} (28... e3 $16 29. fxe3 (29. Nxe3 Qxa2 30. Qf3 Qe6 $16) 29... Be5) 29. Qxe4 $18 {[%emt 0:00:30]} f6 $2 {[%emt 0:02:14] [#] Black is weak on the light squares} (29... Rab8 30. Qc4 Qc5 31. Qxc5 bxc5) 30. Ne7+ $1 {[%emt 0:00:59][%mdl 512]} Kh8 {[%emt 0:00:16] [#]} (30... Rxe7 31. Qxa8+) 31. Qxa8 $3 {[%emt 0:00:12][%mdl 512] Weighted Error Value: White=0.10 (very precise) /Black=0.58.  Mistake:       	---       	Black=4      Inaccurate:     	White=3     	Black=3      OK:         	White=7     	Black=4      Best:        	White=3     	Black=1      Brilliant:      	White=1     	---} 1-0

[Event "Queen Rapid Challenge 2024"]
[Site "Bucharest"]
[Date "2024.03.10"]
[Round "3.2"]
[White "Ciolacu, Alessia-Mihaela"]
[Black "Obada, Ema"]
[Result "0-1"]
[ECO "E59"]
[WhiteElo "2175"]
[BlackElo "1976"]
[Annotator "RC"]
[PlyCount "68"]
[EventDate "2024.03.09"]
[EventType "rapid"]
[EventCountry "ROU"]
[SourceTitle "playchess.com"]
[Source "ChessBase"]
[SourceQuality "1"]
[TimeControl "900+10"]

1. d4 {[%emt 0:00:14]} Nf6 {[%emt 0:00:11]} 2. c4 {[%emt 0:00:09]} e6 {[%emt 0:00:06]} 3. Nc3 {[%emt 0:00:09]} Bb4 {[%emt 0:00:08]} 4. e3 {[%emt 0:00:13]} O-O {[%emt 0:00:10]} 5. Bd3 {[%emt 0:00:10]} d5 {[%emt 0:00:11]} 6. a3 {[%emt 0:00:39]} Bxc3+ {[%emt 0:00:08]} 7. bxc3 {[%emt 0:00:07]} dxc4 {[%emt 0:00:07]} 8. Bxc4 {[%emt 0:00:07]} c5 {[%emt 0:00:07]} 9. Nf3 {[%emt 0:00:08]} Qc7 {[%emt 0:00:28]} 10. Be2 {[%emt 0:00:17]} Nc6 {[%emt 0:00:27]} 11. Bb2 {[%emt 0:00:48]} Rd8 {[%emt 0:01:43]} 12. O-O {[%emt 0:01:15]} e5 {[%emt 0:02:44]} 13. Qc2 {[%emt 0:01:13]} Be6 {[%emt 0:01:09]} 14. dxe5 {[%emt 0:05:24]} Nxe5 {[%emt 0:01:05]} 15. Nxe5 {[%emt 0:00:15]} Qxe5 {[%emt 0:00:07]} 16. c4 {[%emt 0:00:14]} Qe4 {[%emt 0:02:47]} 17. Qc3 {[%emt 0:00:23]} Rab8 {[%emt 0:00:38]} 18. a4 {[%emt 0:01:00]} Qg6 {[%emt 0:00:28]} 19. Rfd1 {[%emt 0:01:10]} Ne4 {[%emt 0:00:38]} 20. Qe5 {[%emt 0:00:20]} Re8 {[%emt 0:02:12]} 21. Qf4 {[%emt 0:03:49]} Bh3 {[%emt 0:01:15]} 22. Bf1 {[%emt 0:00:20]} Rbd8 {[%emt 0:00:44]} 23. Kh1 {[%emt 0:00:07]} Be6 {[%emt 0:00:31]} 24. Be2 {[%emt 0:00:30]} f6 {[%emt 0:00:21]} 25. h4 {[%emt 0:00:11]} Nd2 {[%emt 0:00:21]} 26. h5 {[%emt 0:00:11]} Qc2 {[%emt 0:00:06]} 27. Ba3 {[%emt 0:00:10]} Nb3 {[%emt 0:00:29]} 28. Rxd8 {[%emt 0:00:10]} Rxd8 {[%emt 0:00:06]} 29. Re1 {[%emt 0:00:09]} Qd2 {[%emt 0:00:20]} 30. Rb1 {[%emt 0:00:06]} Qa2 {[%emt 0:00:10]} 31. Re1 {[%emt 0:00:11]} Qxa3 {[%emt 0:00:09]} 32. Qc7 {[%emt 0:00:07]} Re8 {[%emt 0:00:09]} 33. Qxb7 {[%emt 0:00:09]} Qb4 {[%emt 0:00:06]} 34. Qc6 {[%emt 0:00:08]} Qxe1+ {[%emt 0:00:07]} 0-1

[Event "Queen Rapid Challenge 2024"]
[Site "Bucharest"]
[Date "2024.03.10"]
[Round "3.3"]
[White "Stanciu, Andreea-Briana"]
[Black "Raeva, Elitsa"]
[Result "0-1"]
[ECO "B08"]
[WhiteElo "1976"]
[BlackElo "2185"]
[Annotator "RC"]
[PlyCount "138"]
[EventDate "2024.03.09"]
[EventType "rapid"]
[EventCountry "ROU"]
[SourceTitle "playchess.com"]
[Source "ChessBase"]
[SourceQuality "1"]
[TimeControl "900+10"]

1. d4 {[%emt 0:00:12]} Nf6 {[%emt 0:00:12]} 2. Bf4 {[%emt 0:00:07]} d6 {[%emt 0:00:09]} 3. Nc3 {[%emt 0:00:16]} g6 {[%emt 0:00:08]} 4. e4 {[%emt 0:00:07]} Bg7 {[%emt 0:00:08]} 5. Nf3 {[%emt 0:00:08]} O-O {[%emt 0:00:15]} 6. Bd3 {[%emt 0:00:12]} c6 {[%emt 0:00:07]} 7. h3 {[%emt 0:00:33]} Nbd7 {[%emt 0:00:41]} 8. Qd2 {[%emt 0:00:42]} Re8 {[%emt 0:00:11]} 9. Bh6 {[%emt 0:00:11]} Bh8 {[%emt 0:00:12]} 10. e5 {[%emt 0:01:20]} Nd5 {[%emt 0:00:57]} 11. Nxd5 {[%emt 0:00:42]} cxd5 {[%emt 0:00:06]} 12. e6 {[%emt 0:01:15]} Nf6 {[%emt 0:01:31]} 13. Bb5 {[%emt 0:03:41]} Bxe6 {[%emt 0:01:27]} 14. Bxe8 {[%emt 0:00:08]} Qxe8 {[%emt 0:00:07]} 15. O-O {[%emt 0:01:46]} Rc8 {[%emt 0:00:39]} 16. Ng5 {[%emt 0:01:25]} Bf5 {[%emt 0:01:22]} 17. c3 {[%emt 0:00:15]} Ne4 {[%emt 0:01:18]} 18. Nxe4 {[%emt 0:00:30]} dxe4 {[%emt 0:00:07]} 19. d5 {[%emt 0:00:52]} Bd7 {[%emt 0:01:12]} 20. Be3 {[%emt 0:00:18]} b6 {[%emt 0:00:14]} 21. Bd4 {[%emt 0:00:29]} f6 {[%emt 0:00:19]} 22. Rfe1 {[%emt 0:00:08]} e5 {[%emt 0:00:47]} 23. dxe6 {[%emt 0:00:11]} Qxe6 {[%emt 0:00:15]} 24. a4 {[%emt 0:00:52]} Bc6 {[%emt 0:01:15]} 25. a5 {[%emt 0:00:11]} Qd5 {[%emt 0:00:08]} 26. Qe3 {[%emt 0:00:59]} bxa5 {[%emt 0:00:19]} 27. Bxa7 {[%emt 0:00:15]} f5 {[%emt 0:00:08]} 28. Red1 {[%emt 0:00:07]} Qb5 {[%emt 0:00:34]} 29. Qb6 {[%emt 0:00:23]} Qxb6 {[%emt 0:02:15]} 30. Bxb6 {[%emt 0:00:06]} a4 {[%emt 0:00:06]} 31. Rxd6 {[%emt 0:00:08]} Kf7 {[%emt 0:00:21]} 32. Rd8 {[%emt 0:00:50]} Rxd8 {[%emt 0:00:14]} 33. Bxd8 {[%emt 0:00:06]} Bb5 {[%emt 0:00:35]} 34. Bb6 {[%emt 0:00:19]} Be5 {[%emt 0:00:07]} 35. g3 {[%emt 0:00:28]} Ke6 {[%emt 0:00:07]} 36. Rd1 {[%emt 0:00:10]} Bd3 {[%emt 0:00:07]} 37. Ra1 {[%emt 0:00:07]} Bc2 {[%emt 0:00:09]} 38. Kf1 {[%emt 0:00:14]} Kd5 {[%emt 0:00:07]} 39. Ke2 {[%emt 0:00:11]} Kc4 {[%emt 0:00:24]} 40. Kd2 {[%emt 0:00:24]} Kb3 {[%emt 0:00:38]} 41. Bd4 {[%emt 0:00:25]} Bd6 {[%emt 0:00:26]} 42. c4 {[%emt 0:00:11]} Bd3 {[%emt 0:01:02]} 43. c5 {[%emt 0:00:08]} Bc7 {[%emt 0:00:08]} 44. Ra3+ {[%emt 0:00:07]} Kb4 {[%emt 0:00:13]} 45. Rxd3 {[%emt 0:00:23]} exd3 46. Kxd3 {[%emt 0:00:06]} Kb5 {[%emt 0:00:43]} 47. g4 {[%emt 0:00:16]} Kc6 {[%emt 0:00:16]} 48. Kc4 {[%emt 0:00:08]} fxg4 {[%emt 0:00:07]} 49. hxg4 {[%emt 0:00:06]} Ba5 {[%emt 0:00:15]} 50. g5 {[%emt 0:00:16]} Be1 {[%emt 0:00:13]} 51. f4 {[%emt 0:00:08]} Bd2 {[%emt 0:00:06]} 52. Be5 {[%emt 0:00:06]} Be3 {[%emt 0:00:07]} 53. Bd6 {[%emt 0:00:07]} Bd2 {[%emt 0:00:07]} 54. Kd3 {[%emt 0:00:11]} Bb4 {[%emt 0:00:13]} 55. Kc4 {[%emt 0:00:07]} Bd2 {[%emt 0:00:26]} 56. Be5 {[%emt 0:00:17]} Be1 {[%emt 0:00:00]} 57. Bd6 {[%emt 0:00:11]} Bd2 {[%emt 0:00:00]} 58. Kd3 {[%emt 0:00:10]} Bb4 {[%emt 0:00:06]} 59. Kd4 {[%emt 0:00:11]} Ba5 {[%emt 0:00:28]} 60. Ke5 {[%emt 0:00:08]} Bc3+ {[%emt 0:00:06]} 61. Ke6 {[%emt 0:00:10]} Bxb2 {[%emt 0:00:06]} 62. Be5 {[%emt 0:00:07]} Bxe5 63. fxe5 a3 64. Kf7 {[%emt 0:00:11]} a2 {[%emt 0:00:17]} 65. e6 {[%emt 0:00:07]} a1=Q {[%emt 0:00:10]} 66. e7 {[%emt 0:00:06]} Qf1+ {[%emt 0:00:08]} 67. Kg7 {[%emt 0:00:06]} Qe2 {[%emt 0:00:07]} 68. Kf7 {[%emt 0:00:10]} Qf3+ {[%emt 0:00:06]} 69. Kg7 {[%emt 0:00:07]} Kd7 {[%emt 0:00:06]} 0-1

[Event "Queen Rapid Challenge 2024"]
[Site "Bucharest"]
[Date "2024.03.10"]
[Round "3.4"]
[White "Hoanca, Alexia-Ioana"]
[Black "Cosman, Andreea-Marioara"]
[Result "0-1"]
[ECO "B90"]
[WhiteElo "1849"]
[BlackElo "2115"]
[Annotator "RC"]
[PlyCount "78"]
[EventDate "2024.03.09"]
[EventType "rapid"]
[EventCountry "ROU"]
[SourceTitle "playchess.com"]
[Source "ChessBase"]
[SourceQuality "1"]
[TimeControl "900+10"]

1. e4 {[%emt 0:00:11]} c5 {[%emt 0:00:11]} 2. Nf3 {[%emt 0:00:06]} d6 {[%emt 0:00:06]} 3. d4 {[%emt 0:00:07]} Nf6 {[%emt 0:00:07]} 4. Nc3 {[%emt 0:00:07]} cxd4 {[%emt 0:00:06]} 5. Nxd4 {[%emt 0:00:06]} a6 {[%emt 0:00:06]} 6. Be3 {[%emt 0:00:08]} e5 {[%emt 0:00:06]} 7. Nf3 {[%emt 0:00:06]} Be7 {[%emt 0:00:12]} 8. Nd2 {[%emt 0:00:15]} b5 {[%emt 0:01:14]} 9. a4 {[%emt 0:00:14]} b4 {[%emt 0:00:08]} 10. Nd5 {[%emt 0:00:06]} Nxd5 {[%emt 0:00:36]} 11. exd5 {[%emt 0:00:08]} Nd7 {[%emt 0:01:08]} 12. a5 {[%emt 0:00:21]} O-O {[%emt 0:00:20]} 13. Nc4 {[%emt 0:00:13]} f5 {[%emt 0:00:22]} 14. Bd2 {[%emt 0:01:11]} Rb8 {[%emt 0:00:20]} 15. Ra4 {[%emt 0:00:17]} b3 {[%emt 0:00:27]} 16. cxb3 {[%emt 0:01:07]} Nc5 {[%emt 0:00:07]} 17. Rb4 {[%emt 0:00:21]} Bb7 {[%emt 0:00:06]} 18. Nb6 {[%emt 0:01:10]} f4 {[%emt 0:01:06]} 19. Be2 {[%emt 0:02:48]} e4 {[%emt 0:00:07]} 20. O-O {[%emt 0:00:20]} Qe8 {[%emt 0:04:29]} 21. f3 {[%emt 0:00:38]} e3 {[%emt 0:00:40]} 22. Bc3 {[%emt 0:00:22]} Qh5 {[%emt 0:00:24]} 23. Bd4 {[%emt 0:01:41]} Bh4 {[%emt 0:00:24]} 24. Bxc5 {[%emt 0:02:02]} dxc5 {[%emt 0:00:10]} 25. Re4 {[%emt 0:00:46]} Rf5 {[%emt 0:01:38]} 26. Bc4 {[%emt 0:01:36]} Bf2+ {[%emt 0:01:41]} 27. Rxf2 {[%emt 0:01:08]} exf2+ {[%emt 0:00:07]} 28. Kxf2 {[%emt 0:00:14]} Rbf8 {[%emt 0:01:48]} 29. Re7 {[%emt 0:00:44]} Qxh2 {[%emt 0:00:46]} 30. d6+ {[%emt 0:00:56]} Kh8 {[%emt 0:00:08]} 31. Qf1 {[%emt 0:00:21]} Bxf3 {[%emt 0:00:33]} 32. Kxf3 {[%emt 0:00:06]} Qg3+ {[%emt 0:00:06]} 33. Ke2 {[%emt 0:00:08]} f3+ {[%emt 0:00:06]} 34. gxf3 {[%emt 0:00:23]} Rxf3 {[%emt 0:00:11]} 35. Qe1 {[%emt 0:00:08]} Qxd6 {[%emt 0:00:30]} 36. Re6 {[%emt 0:00:15]} Qd4 {[%emt 0:00:07]} 37. Qc3 {[%emt 0:00:18]} Rxc3 {[%emt 0:00:13]} 38. bxc3 {[%emt 0:00:06]} Rf2+ {[%emt 0:00:08]} 39. Ke1 {[%emt 0:00:09]} Qd2# 0-1

[Event "Queen Rapid Challenge 2024"]
[Site "Bucharest"]
[Date "2024.03.10"]
[Round "3.5"]
[White "Rata, Anamaria"]
[Black "Iordache, Alexia-Andreea"]
[Result "0-1"]
[ECO "B56"]
[WhiteElo "1790"]
[BlackElo "1866"]
[Annotator "NA RC"]
[PlyCount "60"]
[EventDate "2024.03.09"]
[EventType "rapid"]
[EventCountry "ROU"]
[SourceTitle "playchess.com"]
[Source "ChessBase"]
[SourceQuality "1"]
[TimeControl "900+10"]

1. e4 {[%emt 0:00:12]} c5 {[%emt 0:00:10]} 2. Nf3 {[%emt 0:00:07]} d6 {[%emt 0:00:07]} 3. d4 {[%emt 0:00:07]} cxd4 {[%emt 0:00:06]} 4. Nxd4 {[%emt 0:00:06]} Nf6 {[%emt 0:00:11]} 5. Nc3 {[%emt 0:00:07]} Nc6 {[%emt 0:00:06]} 6. Be3 {[%emt 0:00:11]} Ng4 {[%emt 0:00:07]} 7. Nxc6 {[%emt 0:03:37]} bxc6 {[%emt 0:00:16]} 8. Bg5 {[%emt 0:02:10]} h6 {[%emt 0:00:26]} 9. Bh4 {[%emt 0:00:14]} g5 {[%emt 0:00:59]} 10. Bg3 {[%emt 0:00:11]} Bg7 {[%emt 0:00:09]} 11. Bc4 {[%emt 0:01:58]} Qb6 {[%emt 0:01:01]} 12. Bb3 {[%emt 0:00:59]} Ne5 {[%emt 0:03:58]} 13. Qd2 {[%emt 0:03:10]} a5 {[%emt 0:02:14]} 14. f4 {[%emt 0:02:21]} Ng4 {[%emt 0:02:04]} 15. h3 {[%emt 0:01:20]} Qe3+ {[%emt 0:01:44]} 16. Qxe3 {[%emt 0:00:23]} Nxe3 {[%emt 0:00:06]} 17. Kf2 {[%emt 0:00:20]} Bd4 {[%emt 0:00:09]} 18. Ke2 {[%emt 0:00:29]} Nxg2 {[%emt 0:00:30]} 19. Kf3 {[%emt 0:00:12]} Nxf4 {[%emt 0:00:10]} 20. Bxf4 {[%emt 0:00:07]} gxf4 {[%emt 0:00:07]} 21. Kxf4 {[%emt 0:00:07]} Rg8 {[%emt 0:00:49]} 22. Na4 {[%emt 0:00:13]} Be5+ {[%emt 0:00:14]} 23. Kf3 {[%emt 0:00:11]} Rg3+ {[%emt 0:00:17]} 24. Kf2 {[%emt 0:00:08]} Bxh3 {[%emt 0:01:11]} 25. Nb6 {[%emt 0:00:12]} Ra6 {[%emt 0:00:43]} 26. Nc4 {[%emt 0:00:07]} Rg2+ {[%emt 0:00:58]} 27. Kf3 {[%emt 0:00:13]} Rg3+ {[%emt 0:00:20]} 28. Kf2 {[%emt 0:00:06]} Bf4 {[%emt 0:00:38]} 29. Ba4 {[%emt 0:00:13]} Be6 {[%emt 0:00:00]} 30. b3 {[%emt 0:00:19]} Bxc4 {[%emt 0:00:20]} 0-1

[Event "Queen Rapid Challenge 2024"]
[Site "Bucharest"]
[Date "2024.03.10"]
[Round "3.6"]
[White "Batagan, Ilinca-Petra"]
[Black "Popa, Andra-Maria"]
[Result "1-0"]
[ECO "B84"]
[WhiteElo "1915"]
[BlackElo "1774"]
[Annotator "RC"]
[PlyCount "69"]
[EventDate "2024.03.09"]
[EventType "rapid"]
[EventCountry "ROU"]
[SourceTitle "playchess.com"]
[Source "ChessBase"]
[SourceQuality "1"]
[TimeControl "900+10"]

1. e4 {[%emt 0:00:14]} c5 {[%emt 0:00:11]} 2. Nf3 {[%emt 0:00:14]} e6 {[%emt 0:00:07]} 3. d4 {[%emt 0:00:09]} cxd4 {[%emt 0:00:07]} 4. Nxd4 {[%emt 0:00:08]} a6 {[%emt 0:00:08]} 5. Nc3 {[%emt 0:00:08]} d6 {[%emt 0:00:15]} 6. Be2 {[%emt 0:00:25]} Nf6 {[%emt 0:00:12]} 7. Be3 {[%emt 0:01:00]} Be7 {[%emt 0:00:11]} 8. O-O {[%emt 0:00:13]} O-O {[%emt 0:00:20]} 9. f4 {[%emt 0:00:11]} Qc7 {[%emt 0:03:37]} 10. Qe1 {[%emt 0:01:05]} b5 {[%emt 0:00:24]} 11. a3 {[%emt 0:00:14]} Bb7 {[%emt 0:00:13]} 12. Bf3 {[%emt 0:00:14]} Nbd7 {[%emt 0:00:28]} 13. Qg3 {[%emt 0:00:43]} Nc5 {[%emt 0:01:50]} 14. e5 {[%emt 0:00:25]} Nfe4 {[%emt 0:02:15]} 15. Nxe4 {[%emt 0:01:16]} Nxe4 {[%emt 0:00:52]} 16. Bxe4 {[%emt 0:00:11]} Bxe4 {[%emt 0:00:08]} 17. f5 {[%emt 0:01:12]} exf5 {[%emt 0:01:58]} 18. Bh6 {[%emt 0:01:05]} g6 {[%emt 0:00:42]} 19. Bxf8 {[%emt 0:00:20]} Kxf8 {[%emt 0:01:13]} 20. e6 {[%emt 0:02:24]} f6 {[%emt 0:00:14]} 21. c3 {[%emt 0:00:21]} Qb6 {[%emt 0:01:22]} 22. Rae1 {[%emt 0:00:35]} d5 {[%emt 0:00:22]} 23. Qh4 {[%emt 0:00:48]} Kg7 {[%emt 0:00:43]} 24. Re3 {[%emt 0:00:40]} Bc5 {[%emt 0:01:00]} 25. Rh3 {[%emt 0:00:33]} Bxd4+ {[%emt 0:00:12]} 26. cxd4 {[%emt 0:00:06]} h5 {[%emt 0:00:14]} 27. Rg3 {[%emt 0:00:33]} Rh8 {[%emt 0:00:14]} 28. Qf4 {[%emt 0:00:25]} Qxe6 {[%emt 0:00:12]} 29. Rc1 {[%emt 0:00:22]} Re8 {[%emt 0:00:08]} 30. Qh4 {[%emt 0:00:24]} Kh6 {[%emt 0:00:10]} 31. Rgc3 {[%emt 0:00:14]} Re7 {[%emt 0:00:11]} 32. Rc6 {[%emt 0:00:08]} Qf7 {[%emt 0:00:10]} 33. Rxf6 {[%emt 0:00:09]} Qh7 {[%emt 0:00:10]} 34. Rcc6 {[%emt 0:00:15]} Rg7 {[%emt 0:00:10]} 35. Qf4# {[%emt 0:00:09]} 1-0

[Event "Queen Rapid Challenge 2024"]
[Site "Bucharest"]
[Date "2024.03.10"]
[Round "3.7"]
[White "Sgircea, Silvia-Raluca"]
[Black "Sandu, Mihaela"]
[Result "1-0"]
[ECO "E06"]
[WhiteElo "2224"]
[BlackElo "2270"]
[Annotator "TA"]
[PlyCount "91"]
[EventDate "2024.03.09"]
[EventType "rapid"]
[EventCountry "ROU"]
[SourceTitle "playchess.com"]
[Source "ChessBase"]
[SourceQuality "1"]
[TimeControl "900+10"]

{[%evp 15,91,0,3,-22,7,10,0,-17,22,9,31,25,32,21,18,12,58,20,112,86,173,173,289,281,277,286,298,300,291,247,589,581,641,640,695,635,751,748,748,722,743,732,744,722,762,752,754,744,739,733,839,823,918,912,980,999,1202,1089,1141,1065,1058,1067,1372,1260,1242,1065,1285,1272,1305,1300,1262,1204,1126,0,1358,1246,1327,1319]} 1. d4 {[%emt 0:00:13]} Nf6 {[%emt 0:00:11]} 2. c4 {[%emt 0:00:07]} e6 {[%emt 0:00:07]} 3. g3 {[%emt 0:00:08]} Bb4+ {[%emt 0:00:07]} 4. Nd2 {[%emt 0:00:07]} d5 {[%emt 0:00:13]} 5. Bg2 {[%emt 0:00:14]} O-O {[%emt 0:00:16]} 6. Ngf3 {[%emt 0:00:08]} c5 {[%emt 0:00:28]} 7. dxc5 {[%emt 0:02:13]} Bxc5 {[%emt 0:00:50]} 8. O-O {[%emt 0:00:15]} Nc6 {[%emt 0:00:07]} 9. Nb3 {[%emt 0:00:27]} Be7 {[%emt 0:00:18]} 10. cxd5 {[%emt 0:00:17]} Nxd5 {[%emt 0:00:19]} 11. Nfd4 {[%emt 0:02:06] The position is equal.} Bd7 {[%emt 0:02:33]} 12. e4 {[%emt 0:00:58]} Nb6 {[%emt 0:00:18]} 13. Qe2 {[%emt 0:00:57]} Bf6 {[%emt 0:00:49]} 14. Be3 {[%emt 0:00:20]} Nxd4 {[%emt 0:00:49]} 15. Nxd4 {[%emt 0:00:24]} Qe7 {[%emt 0:01:30]} (15... Ba4 $11 16. Nb5 a6) 16. Rac1 {[%emt 0:00:49]} e5 {[%emt 0:02:14]} (16... Rfd8 $11) 17. Nb5 {[%emt 0:00:56] White is more active. White leaves nothing to chance now.} Qb4 {[%emt 0:00:30]} (17... Rfc8 $16) 18. Nc7 $18 {[%emt 0:00:42]} Qa5 {[%emt 0:02:32]} (18... Rac8 $142 19. Bc5 Qa5) 19. Nxa8 {[%emt 0:01:01]} Rxa8 {[%emt 0:00:13]} 20. Rfd1 {[%emt 0:01:45] [#] Hoping for Bxb6.} Bb5 {[%emt 0:00:25]} 21. Qd2 {[%emt 0:01:15]} Qxa2 {[%emt 0:00:13]} 22. Qb4 {[%emt 0:00:34]} Bc6 {[%emt 0:01:09]} (22... Qa4 23. Qc3 Be2) 23. Ra1 {[%emt 0:00:09]} Qc4 {[%emt 0:00:37] [#]} 24. Qxb6 {[%emt 0:00:44][%mdl 512]} h5 {[%emt 0:00:14][%cal Bh7h5,Bh5h4][%mdl 32]} (24... a6 25. Rac1) 25. Qc5 {[%emt 0:00:32]} Qe2 {[%emt 0:00:16]} 26. Rd2 {[%emt 0:00:26]} Qg4 {[%emt 0:00:07]} 27. f3 {[%emt 0:00:08]} Qe6 {[%emt 0:00:08]} 28. Rxa7 {[%emt 0:00:42]} Rc8 {[%emt 0:00:06]} 29. Qa3 {[%emt 0:00:24]} h4 {[%emt 0:00:44]} 30. Ra8 {[%emt 0:00:08]} Rxa8 {[%emt 0:00:24]} 31. Qxa8+ {[%emt 0:00:07]} Kh7 {[%emt 0:00:07]} 32. Qa3 {[%emt 0:00:20]} Qc4 {[%emt 0:00:25]} 33. Qc3 {[%emt 0:00:10]} Qa6 {[%emt 0:00:06]} 34. Bf1 {[%emt 0:00:13]} Qa1 {[%emt 0:00:10]} 35. Kf2 {[%emt 0:00:06]} h3 {[%emt 0:00:21]} 36. Qc2 {[%emt 0:00:16]} Be7 {[%emt 0:00:15]} 37. Rd1 {[%emt 0:00:09]} Qa5 {[%emt 0:00:11]} 38. Bxh3 {[%emt 0:00:19]} Ba4 {[%emt 0:00:17]} 39. b3 {[%emt 0:00:06]} Bc6 {[%emt 0:00:08]} 40. Bf1 {[%emt 0:00:12][%cal Bh3f1,Bf1c4,Bc4d5][%mdl 32]} Qb4 {[%emt 0:00:13]} 41. Bc4 {[%emt 0:00:07]} f6 {[%emt 0:00:11]} 42. Qd2 {[%emt 0:00:10]} Qa3 {[%emt 0:00:09]} 43. Qc3 {[%emt 0:00:15]} Qa2+ {[%emt 0:00:10]} 44. Qd2 {[%emt 0:00:10]} Qa3 {[%emt 0:00:07]} 45. Bd5 {[%emt 0:00:08]} Bb4 {[%emt 0:00:10]} 46. Qc2 {[%emt 0:00:10] Weighted Error Value: White=0.14 (very precise) /Black=0.68.  Mistake:       	---       	Black=5      Inaccurate:     	White=1     	Black=2      OK:         	White=2     	Black=3      Best:        	White=3     	---        Brilliant:      	White=1     	---} 1-0